Cogmind - Beta 11.1 @@@ ROGUE MODE // 2022.07.24 @ 14:52:01 Player: NoNeedToExplain Result: Core destroyed Performance ------------- Evolutions (5) 2500 Regions Visited (17) 3400 Robots Destroyed (345) 1725 Value Destroyed (12901) 12901 Prototype IDs (35) 700 Alien Tech Used (1) 200 Bonus (1805) 1805 TOTAL SCORE: 23231 Bonus ------- High Alert Combat Kills 1469 Follower Combat Kills 238 Met Data Miner 300 Met Zhirov 300 Friendly Fire -502 Cogmind --------- Core Integrity 0/1000 Matter 134/300 Energy 600/600 System Corruption 61% Temperature Cool (0) Movement Core (1400) Ox27 Location -5/Zhirov Parts ------- > --- POWER (2) -------- (None) > --- PROPULSION (4) --- (None) > --- UTILITY (8) ------ Huge Storage Unit Advanced Energy Well Advanced Targeting Computer Graphene Brace > --- WEAPON (3) ------- (None) > --- INVENTORY (25) --- Light Angular Momentum Engine Advanced Cooling System Improved Matter Compressor (298) Improved Sensor Array Cloaking Device Core Shielding Experimental Utility Shielding Graphene Brace Improved Thermal Shield EM Disruption Field Advanced System Shield Improved Dynamic Insulation System Transdimensional Reconstructor Heavy Mace Heavy Mace Peak State ------------ > --- POWER ------------ Light Angular Momentum Engine Micro Fission Core > --- PROPULSION ------- Medium Treads Medium Treads Improved Medium Treads Armored Medium Treads > --- UTILITY ---------- Advanced Cooling System Coolant Injector Huge Storage Unit 0b10 Decoder Chip [Scout] Advanced Targeting Computer Precision Energy Filter Improved Medium Armor Plating Graphene Brace > --- WEAPON ----------- Heavy Plasma Cannon Compact Ion Cannon Compact Ion Cannon > --- INVENTORY -------- Light Angular Momentum Engine Advanced Cooling System Advanced Cooling System Energy Well Matter Compressor Improved Sensor Array Improved Medium Armor Plating Improved Medium Armor Plating Layered Medium Armor Plating Graphene Brace Improved Focal Shield Improved Thermal Shield EM Disruption Field Improved Hardlight Generator Long-range Proton Cannon Long-range Proton Cannon Long-range Proton Cannon Long-range Proton Cannon Antimatter Cannon Hypervelocity Gauss Cannon Hypervelocity Gauss Cannon Heavy Rocket Launcher Shock Maul [Rating: 96] Favorites ----------- Power Improved Deuterium Engine Engine Improved Deuterium Engine Power Core Fission Core Reactor Light Antimatter Reactor Propulsion Armored Huge Wheel Treads Light Treads Wheel Armored Huge Wheel Utility Huge Storage Unit Device Improved Cooling System Storage Huge Storage Unit Processor Advanced Targeting Computer Hackware Hacking Suite Protection Layered Medium Armor Plating Weapon Enhanced Autogun Energy Gun Particle Gun Energy Cannon Plasma Cannon Ballistic Gun Enhanced Autogun Ballistic Cannon Hypervelocity Gauss Cannon Launcher Long-range Missile Launcher Impact Weapon Shock Maul Piercing Weapon Spear Build | -11 -10 -10 -9 -9 -9 -8 -8 -7 -6 -6 -6 -6 -5 -5 -5 -5 -5 ------- Run | Scr Mat Min Mat Min Exi Min Mat Fac Fac Low Low Dat Pro Fac Upp Upp Zhi Slots Evolved 10 | . . . 2 . . . 2 2 2 . . . . 2 . . . Power 1 | . . . . . . . . 1 . . . . . . . . . Propulsion 2 | . . . . . . . . . . . . . . 2 . . . Utility 6 | . . . 1 . . . 2 1 2 . . . . . . . . Weapon 1 | . . . 1 . . . . . . . . . . . . . . Parts Attached 356 | 6 15 5 30 5 . 3 60 53 29 13 8 . 11 72 33 . 13 Power 29 | 1 3 . 2 . . . 4 5 3 1 1 . . 5 3 . 1 Engine 20 | 1 2 . 2 . . . 3 4 2 . . . . 3 2 . 1 Core 8 | . 1 . . . . . 1 1 . 1 1 . . 2 1 . . Reactor 1 | . . . . . . . . . 1 . . . . . . . . Propulsion 38 | 2 4 . 7 1 . . 7 1 3 . . . . 7 5 . 1 Treads 25 | . 4 . 6 . . . 4 . 2 . . . . 4 4 . 1 Leg . | . . . . . . . . . . . . . . . . . . Wheel 13 | 2 . . 1 1 . . 3 1 1 . . . . 3 1 . . Hover . | . . . . . . . . . . . . . . . . . . Flight . | . . . . . . . . . . . . . . . . . . Utility 150 | 1 4 1 6 4 . 1 28 29 15 8 4 . 2 30 12 . 5 Device 91 | . 1 1 1 1 . 1 14 25 8 5 2 . 2 23 6 . 1 Storage 12 | 1 2 . 1 1 . . 3 . 1 . . . . . 1 . 2 Processor 8 | . . . 1 . . . 2 1 2 . 1 . . 1 . . . Hackware 6 | . . . 2 . . . 2 . . . . . . 2 . . . Protection 33 | . 1 . 1 2 . . 7 3 4 3 1 . . 4 5 . 2 Artifact . | . . . . . . . . . . . . . . . . . . Weapon 139 | 2 4 4 15 . . 2 21 18 8 4 3 . 9 30 13 . 6 Energy Gun 9 | 1 2 . 1 . . . 5 . . . . . . . . . . Energy Cannon 72 | . . . 3 . . . 5 12 6 2 2 . 8 23 8 . 3 Ballistic Gun 21 | 1 2 2 7 . . 1 6 . . . . . . 1 1 . . Ballistic Cannon 5 | . . . . . . . . 1 . . . . . 2 . . 2 Launcher 23 | . . 2 4 . . 1 5 1 1 2 1 . 1 4 1 . . Special Weapon . | . . . . . . . . . . . . . . . . . . Impact Weapon 5 | . . . . . . . . . 1 . . . . . 3 . 1 Slashing Weapon . | . . . . . . . . . . . . . . . . . . Piercing Weapon 4 | . . . . . . . . 4 . . . . . . . . . Special Melee Weapon . | . . . . . . . . . . . . . . . . . . Unidentified Prototypes 16 | . . . 4 . . . 2 2 2 . . . . 3 . . 3 Corrupted Parts 9 | . . . . . . . . . . . . . . . 8 . 1 System Corruption 47 | . . . . . . . . . . . . . . . 46 . 1 Parts Lost 79 | . 4 2 2 . . 1 15 4 5 4 . . . 10 14 . 18 Power 14 | . 1 . . . . . 3 1 1 1 . . . 3 1 . 3 Propulsion 18 | . 2 . 1 . . . 1 . 1 . . . . 4 4 . 5 Utility 26 | . . 1 1 . . 1 6 2 2 2 . . . 1 5 . 5 Weapon 21 | . 1 1 . . . . 5 1 1 1 . . . 2 4 . 5 Highest Loss Streak 18 | . 2 1 1 . . 1 6 2 2 2 . . . 2 11 . 18 To Critical Strikes . | . . . . . . . . . . . . . . . . . . Average Slot Usage (%) 91 | . 99 99 99 90 88 88 90 85 89 92 92 93 93 92 94 94 79 Engine 7 | . 9 14 11 11 11 11 6 6 11 6 5 . . 2 4 5 4 Core 4 | . 4 . . . . . 2 7 . 5 6 13 13 8 5 5 5 Treads 6 | . 24 28 19 5 . . 1 . . . . . . 11 14 23 22 Wheel 5 | . 3 . 2 8 11 11 8 7 5 6 6 6 6 4 4 . . Device 15 | . 5 10 1 . . 7 16 17 19 23 24 26 26 18 15 17 17 Storage 8 | . 14 14 11 11 11 11 12 7 6 6 6 6 6 5 7 5 7 Processor 8 | . . . 10 11 11 3 3 6 13 13 13 13 13 11 8 5 5 Hackware 1 | . . . 9 2 . . 1 . . . . . . 2 . . . Protection 7 | . 8 2 . 7 11 11 10 7 9 8 7 6 6 5 10 11 7 Energy Gun 1 | . 12 2 . . . . 5 . . . . . . . . . . Energy Cannon 13 | . . . 1 . . . 9 22 19 17 19 13 14 15 14 17 2 Ballistic Gun 7 | . 15 13 31 33 33 33 8 . . . . . . . . . . Launcher 1 | . . 11 . . . . 3 . . 1 . 6 4 . . . . Naked Turns . | . . . . . . . . . . . . . . . . . . Heaviest Build 155 | 12 33 33 57 104 104 105 116 146 150 151 154 148 150 154 155 155 155 Greatest Support 113 | 26 40 40 43 43 28 28 43 28 28 28 28 28 28 113 106 106 106 Greatest Overweight (x) 11 | . 1 . 5 3 3 3 11 5 5 5 5 5 5 8 8 1 1 Average Overweight (x) 3 | . . . 1 2 3 3 3 4 4 4 5 5 5 4 4 1 1 Largest Inventory Capacity 25 | 8 15 15 20 25 25 25 25 25 25 25 25 25 25 25 25 25 25 Average Capacity 23 | 7 13 15 18 23 25 25 25 25 25 25 25 25 25 25 25 25 25 Most Carried 25 | 6 15 15 20 25 25 25 25 25 25 25 25 25 25 25 25 25 25 Average Carried 22 | 2 12 14 17 22 25 24 23 24 24 23 25 25 24 24 23 24 24 Final Capacity 25 | 8 15 15 20 25 25 25 25 25 25 25 25 25 25 25 25 25 25 Final Carried 25 | 6 15 15 20 25 25 25 25 23 24 25 25 25 25 24 23 25 15 Class Distribution -------------------- 36% | Gunner 32% | Tank 18% | Mutant 4% | Scavenger-Tank 4% | Scavenger-Mutant Dominant Class ---------------- Mutant | -10/Materials Mutant | -10/Mines Gunner | -9/Materials Gunner | -9/Mines Gunner | -9/Exiles Tank | -8/Mines Gunner | -8/Materials Gunner | -7/Factory Gunner | -6/Factory Tank | -6/Lower Caves Tank | -6/Lower Caves Tank | -6/Data Miner Tank | -5/Proximity Caves Tank | -5/Factory Scavenger-Mutant | -5/Upper Caves Scavenger-Tank | -5/Upper Caves Scavenger-Mutant | -5/Zhirov Resources | -11 -10 -10 -9 -9 -9 -8 -8 -7 -6 -6 -6 -6 -5 -5 -5 -5 -5 ----------- Run | Scr Mat Min Mat Min Exi Min Mat Fac Fac Low Low Dat Pro Fac Upp Upp Zhi Matter Collected 7368 | 208 600 201 1185 197 . 287 1194 558 365 260 80 . 179 1256 283 147 368 Remotely 198 | . . . . . . . 198 . . . . . . . . . . Salvage Created 15042 | . 675 197 1708 164 . 277 2493 1983 2002 401 206 . 577 2804 946 491 118 Parts 642 | . 46 10 106 17 . 18 102 102 79 9 7 . 13 90 24 15 4 Haulers Intercepted 17 | . 2 . 5 . . . 4 4 1 . . . . 1 . . . Recyclers Shooed 17 | . 1 . 6 . . 1 3 . 1 . . . . 5 . . . Parts Field Recycled . | . . . . . . . . . . . . . . . . . . Retrieved Matter . | . . . . . . . . . . . . . . . . . . Parts Self-Destructed 61 | . . . . . . . . . . 7 10 . 11 . 12 21 . Prevented 17 | . . . . . . . . . . . . . 3 . 12 . 2 Kills | -11 -10 -10 -9 -9 -9 -8 -8 -7 -6 -6 -6 -6 -5 -5 -5 -5 -5 ------- Run | Scr Mat Min Mat Min Exi Min Mat Fac Fac Low Low Dat Pro Fac Upp Upp Zhi Combat Hostiles Destroyed 286 | . 13 13 34 6 . 12 53 30 28 17 3 . 9 46 15 7 . Melee 1 | . . . . . . . . . . . . . . . 1 . . Guns 67 | . 13 1 21 6 . 8 18 . . . . . . . . . . Cannons 117 | . . . . . . . 14 26 20 12 3 . 2 23 11 6 . AOE 83 | . . 12 13 . . 4 18 2 5 5 . . 6 18 . . . Classes Destroyed 19 | . 6 1 4 . . 1 4 1 . . 1 . . 1 . . . Worker 11 | . . . 1 . . . 1 2 4 . . . . 3 . . . Builder 7 | . 1 . 2 . . . 1 2 1 . . . . . . . . Tunneler 2 | . . . 1 1 . . . . . . . . . . . . . Hauler 17 | . 2 . 5 . . . 4 4 1 . . . . 1 . . . Recycler 17 | . . . 5 . . . 4 1 3 . . . . 4 . . . Mechanic 1 | . . . . . . . . . . . . . . 1 . . . Operator 7 | . 2 . 1 . . . 1 2 . . . . . 1 . . . Watcher 9 | . 3 . 1 . . . 3 . 1 . . . . 1 . . . Swarmer 60 | . 3 3 15 4 . 8 6 2 2 7 . . 4 4 2 . . Grunt 124 | . 10 2 12 2 . 3 28 12 13 3 . . 4 25 8 2 . Brawler 10 | . . . . . . . 1 . . 2 1 . 1 . 3 2 . Duelist 8 | . . . . . . . 5 . . 1 . . . 2 . . . Protector 2 | . . . . . . . 2 . . . . . . . . . . Sentry 37 | . . . 7 . . . 9 8 4 1 1 . 1 3 2 1 . Hunter 13 | . . . . . . 1 1 2 3 2 . . . 2 . 2 . Programmer 22 | . . . . . . . . 5 6 1 . . . 10 . . . Heavy 2 | . . . . . . . 1 1 . . . . . . . . . Behemoth 1 | . . . . . . . . . . . 1 . . . . . . Assembled 8 | . . 8 . . . . . . . . . . . . . . . Best Kill Streak 12 | . 5 6 11 4 . 4 9 4 9 7 1 . 4 12 6 3 . Combat Bots Only 11 | . 4 6 9 3 . 4 8 3 5 7 1 . 4 11 6 3 . Max Kills in Single Turn 5 | . 1 3 4 2 . 3 5 2 3 3 1 . 3 4 1 1 . Gunslinging 1 | . . . 1 . . . . . . . . . . . . . . Exploded 4 | . . 3 4 . . 3 4 1 2 3 . . 3 4 . . . Melee 1 | . . . . . . . . . . . . . . . 1 . . Uniques/NPCs Destroyed . | . . . . . . . . . . . . . . . . . . Combat | -11 -10 -10 -9 -9 -9 -8 -8 -7 -6 -6 -6 -6 -5 -5 -5 -5 -5 -------- Run | Scr Mat Min Mat Min Exi Min Mat Fac Fac Low Low Dat Pro Fac Upp Upp Zhi Damage Taken 17174 | . 765 411 797 54 . 246 2818 2284 1511 1011 132 . 201 2312 1844 404 2384 Core 2153 | . 186 35 67 26 . 16 342 218 87 109 . . 35 165 129 54 684 Absorbed by Shields 966 | . . . . . . . . . 162 390 72 . 72 . 270 . . Redirected to Shielding 109 | . . . . . . . . . 37 72 . . . . . . . Regen/Repaired (Parts) 95 | . 95 . . . . . . . . . . . . . . . . Core Remaining (%) 60 | 100 . 11 . . . 72 37 68 . . . . 72 . . . . Volleys Fired 635 | . 75 16 78 9 . 22 99 78 58 18 8 . 17 96 29 17 15 Largest 3 | . 2 2 3 3 . 3 3 3 3 3 3 . 3 3 3 3 3 Hottest 285 | . 85 85 118 75 . 75 240 240 210 280 285 . 247 280 270 270 227 Shots Fired 1647 | . 146 19 218 27 . 62 272 228 168 50 21 . 34 247 80 44 31 Gun 608 | . 146 4 199 27 . 60 166 . . . . . . 6 . . . Cannon 956 | . . . 13 . . . 86 226 162 40 21 . 28 225 80 44 31 Launcher 83 | . . 15 6 . . 2 20 2 6 10 . . 6 16 . . . Special . | . . . . . . . . . . . . . . . . . . Kinetic 530 | . 106 3 199 27 . 60 104 . . . . . . 12 2 . 17 Thermal 963 | . 40 1 13 . . . 148 226 162 40 21 . 20 179 61 44 8 Explosive 61 | . . 3 4 . . 2 14 . 6 10 . . 6 16 . . . Electromagnetic 93 | . . 12 2 . . . 6 2 . . . . 8 40 17 . 6 Robot Hit Streak 27 | . 12 3 17 5 . 10 26 27 15 6 5 . 6 22 23 14 11 Robot Miss Streak 7 | . 3 2 5 4 . 3 7 3 3 6 3 . 3 6 4 3 2 Penetration Max . | . . . . . . . . . . . . . . . . . . Secondary Targets 12 | . 1 . 3 2 . . 6 . . . . . . . . . . Max Gunslinging Chain 1 | . 1 . 1 1 . . 1 . . . . . . . . . . Shots Hit Robots 1093 | . 95 10 134 15 . 42 190 142 117 31 16 . 20 172 53 29 27 Core Hits 625 | . 34 17 62 8 . 18 135 65 61 34 11 . 27 111 23 13 6 Critical Kills 9 | . . . 1 . . . 1 2 1 . . . . 3 1 . . Critical Parts Destroyed 10 | . . . 2 . . 1 1 . . . . . . 2 . . 4 Critical Strikes 25 | . 1 . 3 . . 1 2 2 1 . . . . 6 2 . 7 Burn 1 | . 1 . . . . . . . . . . . . . . . . Meltdown 5 | . . . . . . . . 2 1 . . . . 1 1 . . Destroy 18 | . . . 3 . . 1 2 . . . . . . 5 . . 7 Corrupt 1 | . . . . . . . . . . . . . . . 1 . . Melee Attacks 18 | . . . . . . . . 13 . . . . . . 5 . . Impact 5 | . . . . . . . . . . . . . . . 5 . . Slashing . | . . . . . . . . . . . . . . . . . . Piercing 13 | . . . . . . . . 13 . . . . . . . . . Sneak Attacks . | . . . . . . . . . . . . . . . . . . Combat Hostiles . | . . . . . . . . . . . . . . . . . . Follow-up Attacks . | . . . . . . . . . . . . . . . . . . Damage Inflicted 37748 | . 1357 635 3329 278 . 1006 6370 3971 4316 2075 572 . 1622 8951 1738 999 529 Guns 6854 | . 1357 27 2164 278 . 653 2353 . . . . . . 22 . . . Cannons 19644 | . . . 208 . . . 1574 3906 3327 985 572 . 627 5303 1614 999 529 Explosions 11179 | . . 608 952 . . 353 2439 65 989 1090 . . 995 3626 62 . . Melee 62 | . . . . . . . . . . . . . . . 62 . . Ramming 9 | . . . 5 . . . 4 . . . . . . . . . . Kinetic 5603 | . 963 27 2164 278 . 653 1197 . . . . . . 99 13 . 209 Thermal 20352 | . 394 . 387 . . . 2892 3906 3327 985 572 . 510 4961 1210 999 209 Explosive 9273 | . . 379 700 . . 353 1919 . 989 1090 . . 995 2848 . . . Electromagnetic 2449 | . . 229 73 . . . 358 65 . . . . 117 1043 453 . 111 Impact 62 | . . . . . . . . . . . . . . . 62 . . Slashing . | . . . . . . . . . . . . . . . . . . Piercing . | . . . . . . . . . . . . . . . . . . Highest Corruption 61 | . . . . . . . 8 1 1 . . . . 4 50 50 61 Average Corruption 15 | . . . . . . . 8 1 1 . . . . 2 10 50 50 Corruption Purged 9 | . . . . . . . . 4 1 . . . . 4 . . . Corruption Blocked . | . . . . . . . . . . . . . . . . . . Effects 168 | . . . . . . . 50 4 1 . . . . 11 41 35 26 Message Errors 30 | . . . . . . . 11 1 . . . . . 3 7 3 5 Matter Fused 39 | . . . . . . . 11 1 1 . . . . 1 13 6 6 Heat Flow Errors 28 | . . . . . . . 6 . . . . . . 2 9 7 4 Energy Discharges 18 | . . . . . . . 7 . . . . . . 1 6 3 1 Parts Rejected 5 | . . . . . . . 2 1 . . . . . 1 1 . . Data Loss (minor) 16 | . . . . . . . 3 . . . . . . . 2 7 4 Data Loss (major) 4 | . . . . . . . 2 1 . . . . . . . . 1 Misfires 9 | . . . . . . . 6 . . . . . . 1 1 . 1 Alerts 3 | . . . . . . . . . . . . . . . 1 2 . Weapon Failures 16 | . . . . . . . 2 . . . . . . 2 1 7 4 Overload Shots . | . . . . . . . . . . . . . . . . . . Overflow Damage 790 | . . 47 69 . . 53 68 29 52 27 . . 27 399 19 . . Projectiles 317 | . . . . . . . 41 29 26 22 . . . 199 . . . Explosions 454 | . . 47 69 . . 53 27 . 26 5 . . 27 200 . . . Melee 19 | . . . . . . . . . . . . . . . 19 . . Knockbacks 8 | . . . . . . . . . . . . . . 1 . . 7 Impact . | . . . . . . . . . . . . . . . . . . Kinetic 8 | . . . . . . . . . . . . . . 1 . . 7 Secondary . | . . . . . . . . . . . . . . . . . . Self-Inflicted Damage 849 | . . 78 72 . . 23 274 . . 126 . . 71 130 75 . . Shots 28 | . . 5 1 . . 1 10 . . 5 . . 1 4 1 . . Rammed 2 | . . . 1 . . . 1 . . . . . . . . . . Targets Rammed 2 | . . . 1 . . . 1 . . . . . . . . . . Kicked . | . . . . . . . . . . . . . . . . . . Crushed . | . . . . . . . . . . . . . . . . . . Highest Temperature 419 | . 297 33 204 96 . 240 397 264 270 235 404 . 314 419 313 312 213 Average Temperature 98 | . 97 11 56 42 . 89 116 86 90 134 160 . 88 113 101 101 90 Received Heat Transfer 4201 | . 363 105 270 . . 36 981 618 366 115 11 . 35 531 581 90 99 Effects 12 | . . . . . . . 4 . . . 1 . . 4 3 . . Shutdowns 4 | . . . . . . . . . . . 1 . . 2 1 . . Energy Bleed 2 | . . . . . . . 1 . . . . . . 1 . . . Interference 4 | . . . . . . . 2 . . . . . . 1 1 . . Short Circuit 1 | . . . . . . . 1 . . . . . . . . . . Damage (minor) 1 | . . . . . . . . . . . . . . . 1 . . Siege Activations . | . . . . . . . . . . . . . . . . . . Robots Corrupted 10 | . . . . . . . 2 . . . . . 1 4 2 . 1 Combat Hostiles 10 | . . . . . . . 2 . . . . . 1 4 2 . 1 Parts Fried 23 | . . 1 . . . . 4 . . . . . 1 15 1 . 1 Impact Corruptions 1 | . . . . . . . . . . . . . . . 1 . . Robots Melted 12 | . . . . . . . 1 3 4 . . . . 2 1 1 . Combat Hostiles 9 | . . . . . . . 1 2 3 . . . . 1 1 1 . Parts Melted 72 | . . . . . . . 21 15 10 1 . . . 16 1 8 . Heat Transferred 29141 | . 1036 . 470 . . . 5282 6182 4447 1285 711 . 634 5791 1738 1427 138 Parts Sabotaged . | . . . . . . . . . . . . . . . . . . Parts Stolen . | . . . . . . . . . . . . . . . . . . Parts Stripped . | . . . . . . . . . . . . . . . . . . Power Chain Reactions 5 | . . 2 1 . . . . . . . . . . 1 1 . . Missiles Intercepted . | . . . . . . . . . . . . . . . . . . Alert | -11 -10 -10 -9 -9 -9 -8 -8 -7 -6 -6 -6 -6 -5 -5 -5 -5 -5 ------- Run | Scr Mat Min Mat Min Exi Min Mat Fac Fac Low Low Dat Pro Fac Upp Upp Zhi Peak Influence 1125 | . 257 188 513 188 . 226 969 586 691 . . . . 1125 . . . Initial 406 | . . 4 . 63 . . . 406 287 . . . . 50 . . . Average 313 | . 62 131 177 97 . 99 449 304 427 . . . . 611 . . . Maximum Alert Level 4 | . 1 . 2 . . 1 3 2 2 . . . . 4 . . . Low Security (%) 41 | 100 93 100 61 100 . 90 40 23 9 . . . . 4 . . . Level 1 32 | . 6 . 35 . . 9 18 52 46 . . . . 35 . . . Level 2 16 | . . . 2 . . . 5 23 44 . . . . 23 . . . Level 3 7 | . . . . . . . 34 . . . . . . 29 . . . Level 4 . | . . . . . . . . . . . . . . 6 . . . Level 5 . | . . . . . . . . . . . . . . . . . . High Security . | . . . . . . . . . . . . . . . . . . Max Security . | . . . . . . . . . . . . . . . . . . Sterilizations 1 | . . . . . . . 1 . . . . . . . . . . Squads Dispatched 49 | . 2 . 1 1 . . 10 13 10 . . . . 12 . . . Investigation 5 | . . . . 1 . . . 2 1 . . . . 1 . . . Extermination 15 | . . . . . . . . 6 5 . . . . 4 . . . Reinforcement 17 | . 2 . 1 . . . 5 4 1 . . . . 4 . . . Assault 6 | . . . . . . . 2 1 . . . . . 3 . . . Garrison 6 | . . . . . . . 3 . 3 . . . . . . . . Intercept . | . . . . . . . . . . . . . . . . . . Searches Triggered . | . . . . . . . . . . . . . . . . . . Data Miner Redirects 1 | . . . . . . . . . . . . . . 1 . . . Construction Impeded 1 | . . . . . . . 1 . . . . . . . . . . Haulers Reinforced 3 | . . . . . . . . . 1 . . . . 2 . . . Active Scanning Responses . | . . . . . . . . . . . . . . . . . . Cargo Convoy Interrupts . | . . . . . . . . . . . . . . . . . . Stealth | -11 -10 -10 -9 -9 -9 -8 -8 -7 -6 -6 -6 -6 -5 -5 -5 -5 -5 --------- Run | Scr Mat Min Mat Min Exi Min Mat Fac Fac Low Low Dat Pro Fac Upp Upp Zhi Distress Signals 15 | . 1 . 3 . . . 4 3 3 . . . . 1 . . . Communications Jammed 22 | . . . . . . . 22 . . . . . . . . . . Distress Signals 22 | . . . . . . . 22 . . . . . . . . . . Times Spotted 383 | . 25 16 46 8 . 12 63 47 43 17 5 . 10 63 16 7 5 Peak Tracking Total 11 | . 5 7 11 3 . 4 8 5 6 7 3 . 4 9 7 3 3 Tactical Retreats 13 | . 1 2 . 1 . . 1 4 3 . . . . 1 . . . Traps | -11 -10 -10 -9 -9 -9 -8 -8 -7 -6 -6 -6 -6 -5 -5 -5 -5 -5 ------- Run | Scr Mat Min Mat Min Exi Min Mat Fac Fac Low Low Dat Pro Fac Upp Upp Zhi Traps Triggered 12 | . 2 . . . . . 1 8 1 . . . . . . . . Indirectly . | . . . . . . . . . . . . . . . . . . Trap Hack Attempts . | . . . . . . . . . . . . . . . . . . Triggered . | . . . . . . . . . . . . . . . . . . Disarmed . | . . . . . . . . . . . . . . . . . . Reprogrammed . | . . . . . . . . . . . . . . . . . . Reused . | . . . . . . . . . . . . . . . . . . Traps Extracted . | . . . . . . . . . . . . . . . . . . Installed . | . . . . . . . . . . . . . . . . . . Triggered 1 | . . . . . . . . . . . . . . . . 1 . Machines | -11 -10 -10 -9 -9 -9 -8 -8 -7 -6 -6 -6 -6 -5 -5 -5 -5 -5 ---------- Run | Scr Mat Min Mat Min Exi Min Mat Fac Fac Low Low Dat Pro Fac Upp Upp Zhi Machines Disabled 35 | . . . 11 . . . 8 5 2 . . . . 9 . . . Max in Single Turn 3 | . . . 3 . . . 2 2 2 . . . . 2 . . . Garrison Access 3 | . . . . . . . 1 1 . . . . . 1 . . . Machines Sabotaged . | . . . . . . . . . . . . . . . . . . Garrisons Compromised . | . . . . . . . . . . . . . . . . . . Overloaded Fab Kills . | . . . . . . . . . . . . . . . . . . Hacking | -11 -10 -10 -9 -9 -9 -8 -8 -7 -6 -6 -6 -6 -5 -5 -5 -5 -5 --------- Run | Scr Mat Min Mat Min Exi Min Mat Fac Fac Low Low Dat Pro Fac Upp Upp Zhi Machines Accessed 69 | . 7 . 10 1 1 1 6 16 8 1 . 4 1 6 . . 7 Terminals 40 | . 6 . 10 . . 1 4 10 6 . . . 1 2 . . . Fabricators 1 | . . . . . . . . . . . . . . 1 . . . Repair Stations 5 | . 1 . . . . . . 2 1 . . . . 1 . . . Recycling Units 5 | . . . . . . . 1 3 . . . . . 1 . . . Scanalyzers . | . . . . . . . . . . . . . . . . . . Garrison Access 4 | . . . . . . . 1 1 1 . . . . 1 . . . Total Hacks 192 | . 19 . 33 1 2 3 17 36 17 1 . 31 1 12 . . 19 Successful 120 | . 11 . 17 1 2 1 8 16 3 1 . 31 1 9 . . 19 Failed 71 | . 7 . 16 . . 2 9 20 14 . . . . 3 . . . Catastrophic 15 | . . . 3 . . . 3 5 3 . . . . 1 . . . Database Lockouts 1 | . 1 . . . . . . . . . . . . . . . . Manual 70 | . 12 . 18 . . 3 5 19 7 . . . . 6 . . . Terminals 106 | . 16 . 33 . . 3 13 22 15 . . . 1 3 . . . Fabricators 2 | . . . . . . . . . . . . . . 2 . . . Repair Stations 9 | . 3 . . . . . . 3 1 . . . . 2 . . . Recycling Units 15 | . . . . . . . 2 9 . . . . . 4 . . . Scanalyzers . | . . . . . . . . . . . . . . . . . . Garrison Access 6 | . . . . . . . 2 2 1 . . . . 1 . . . Terminal Hacks 91 | . 7 . 14 1 2 1 4 8 2 1 . 31 1 . . . 19 Record 22 | . . . . . 2 . . . . . . 11 1 . . . 8 Part Schematic 16 | . 1 . . . . . . . . . . 12 . . . . 3 Robot Schematic 5 | . . . . . . . . . . . . 5 . . . . . Robot Analysis 13 | . 2 . 4 . . . 1 2 . . . . . . . . 4 Prototype ID Bank 9 | . 1 . . . . . 1 . . . . 3 . . . . 4 Open Door 2 | . . . . 1 . . . . . 1 . . . . . . . Branch Access Points 1 | . . . . . . . . . 1 . . . . . . . . Terminal Index 4 | . 1 . 1 . . . . 1 1 . . . . . . . . Alert Level 7 | . 1 . 3 . . . 1 2 . . . . . . . . . Unreport Threat 10 | . 1 . 4 . . 1 1 3 . . . . . . . . . Locate Traps 1 | . . . 1 . . . . . . . . . . . . . . Recall Investigation 1 | . . . 1 . . . . . . . . . . . . . . Fabricator Hacks 2 | . . . . . . . . . . . . . . 2 . . . Load Schematic 1 | . . . . . . . . . . . . . . 1 . . . Build 1 | . . . . . . . . . . . . . . 1 . . . Repair Station Hacks 4 | . 2 . . . . . . . . . . . . 2 . . . Scan Component 2 | . 1 . . . . . . . . . . . . 1 . . . Repair 2 | . 1 . . . . . . . . . . . . 1 . . . Recycling Unit Hacks . | . . . . . . . . . . . . . . . . . . Scanalyzer . | . . . . . . . . . . . . . . . . . . Garrison Access Hacks 2 | . . . . . . . 1 . . . . . . 1 . . . Seal Access 2 | . . . . . . . 1 . . . . . . 1 . . . Unauthorized Hacks 21 | . 2 . 3 . . . 3 8 1 . . . . 4 . . . Terminals 11 | . 2 . 3 . . . 2 2 1 . . . . 1 . . . Track 1 | . . . 1 . . . . . . . . . . . . . . Botnet 10 | . 2 . 2 . . . 2 2 1 . . . . 1 . . . Fabricators . | . . . . . . . . . . . . . . . . . . Repair Stations . | . . . . . . . . . . . . . . . . . . Recycling Units 10 | . . . . . . . 1 6 . . . . . 3 . . . Monitor 2 | . . . . . . . . 1 . . . . . 1 . . . Reject 4 | . . . . . . . . 3 . . . . . 1 . . . Mask 4 | . . . . . . . 1 2 . . . . . 1 . . . Scanalyzers . | . . . . . . . . . . . . . . . . . . Garrison Access . | . . . . . . . . . . . . . . . . . . Data Cores Recovered 1 | . . . . . . . . 1 . . . . . . . . . Used . | . . . . . . . . . . . . . . . . . . Hacking Detections 51 | . 7 . 10 . . 1 5 16 7 . . . 1 4 . . . Full Trace Events 3 | . . . 1 . . . . . 1 . . . . 1 . . . Feedback Events . | . . . . . . . . . . . . . . . . . . Feedback Blocked . | . . . . . . . . . . . . . . . . . . Robot Schematics Acquired 5 | . . . . . . . . . . . . 5 . . . . . Robots Built . | . . . . . . . . . . . . . . . . . . Authchips . | . . . . . . . . . . . . . . . . . . Time . | . . . . . . . . . . . . . . . . . . Total Robot Build Rating . | . . . . . . . . . . . . . . . . . . Part Schematics Acquired 16 | . 1 . . . . . . . . . . 12 . . . . 3 Parts Built 2 | . . . . . . . . . . . . . . 2 . . . Authchips . | . . . . . . . . . . . . . . . . . . Time 58 | . . . . . . . . . . . . . . 58 . . . Total Part Build Rating 14 | . . . . . . . . . . . . . . 14 . . . Parts Repaired 1 | . 1 . . . . . . . . . . . . . . . . Time 70 | . 26 . . . . . . . . . . . . 44 . . . Parts Recycled . | . . . . . . . . . . . . . . . . . . Recycled Matter . | . . . . . . . . . . . . . . . . . . Retrieved Matter . | . . . . . . . . . . . . . . . . . . Retrieved Components . | . . . . . . . . . . . . . . . . . . Parts Scanalyzed . | . . . . . . . . . . . . . . . . . . Part Schematics Acquired . | . . . . . . . . . . . . . . . . . . Parts Damaged . | . . . . . . . . . . . . . . . . . . Bothacking | -11 -10 -10 -9 -9 -9 -8 -8 -7 -6 -6 -6 -6 -5 -5 -5 -5 -5 ------------ Run | Scr Mat Min Mat Min Exi Min Mat Fac Fac Low Low Dat Pro Fac Upp Upp Zhi Used RIF Installer . | . . . . . . . . . . . . . . . . . . Robots Hacked . | . . . . . . . . . . . . . . . . . . Non-combat . | . . . . . . . . . . . . . . . . . . Combat . | . . . . . . . . . . . . . . . . . . Robot Hacks Applied . | . . . . . . . . . . . . . . . . . . Relay Couplers Released . | . . . . . . . . . . . . . . . . . . Fabnet Peak Effective % . | . . . . . . . . . . . . . . . . . . Robots Rewired 4 | . . . . . . . . . . 2 . . . . 2 . . Allies Hacked . | . . . . . . . . . . . . . . . . . . Hacks Repelled . | . . . . . . . . . . . . . . . . . . Allies | -11 -10 -10 -9 -9 -9 -8 -8 -7 -6 -6 -6 -6 -5 -5 -5 -5 -5 -------- Run | Scr Mat Min Mat Min Exi Min Mat Fac Fac Low Low Dat Pro Fac Upp Upp Zhi Total Allies 8 | . . . . . . . . 3 . 2 . . 1 . 2 . . Largest Group 3 | . . . . . . . . 3 . 2 2 2 3 . 2 2 . Highest-Rated Group 151 | . . . . . . . . 93 . 59 59 55 151 . 60 60 . Highest-Rated Ally 96 | . . . . . . . . 31 . 30 30 29 96 . 30 30 . Total Orders . | . . . . . . . . . . . . . . . . . . Ally Attacks 51 | . . . . . . . . 12 . . 15 . 16 . . 8 . Total Damage 840 | . . . . . . . . 198 . . 196 . 234 . . 212 . Kills 6 | . . . . . . . . 1 . . 2 . 2 . . 1 . Allies Corrupted 3 | . . . . . . . . 2 . . . . 1 . . . . Allies Melted . | . . . . . . . . . . . . . . . . . . Intel | -11 -10 -10 -9 -9 -9 -8 -8 -7 -6 -6 -6 -6 -5 -5 -5 -5 -5 ------- Run | Scr Mat Min Mat Min Exi Min Mat Fac Fac Low Low Dat Pro Fac Upp Upp Zhi Robot Analysis Total 13 | . 2 . 4 . . . 1 2 . . . . . . . . 4 Derelict Logs Recovered 9 | . . . . . . . . . . 2 2 . 3 . 1 1 . Drone Launches . | . . . . . . . . . . . . . . . . . . Drone Recoveries . | . . . . . . . . . . . . . . . . . . Decoded 0b10 Intel 23 | . . . . . . . . . . . . . . 23 . . . Traps 22 | . . . . . . . . . . . . . . 22 . . . Exits 1 | . . . . . . . . . . . . . . 1 . . . Exploration | -11 -10 -10 -9 -9 -9 -8 -8 -7 -6 -6 -6 -6 -5 -5 -5 -5 -5 ------------- Run | Scr Mat Min Mat Min Exi Min Mat Fac Fac Low Low Dat Pro Fac Upp Upp Zhi Turns Passed 22512 | 54 1391 432 1776 740 256 888 1790 3933 2427 2076 1298 132 1181 1863 1385 495 395 Spaces Moved 10991 | 43 695 242 748 419 177 561 860 2003 1153 1117 715 76 631 666 576 175 134 Core 2 | 2 . . . . . . . . . . . . . . . . . Treads 2077 | . 620 242 571 70 . . 16 . . . . . . 90 159 175 134 Legs . | . . . . . . . . . . . . . . . . . . Wheels 8912 | 41 75 . 177 349 177 561 844 2003 1153 1117 715 76 631 576 417 . . Hover . | . . . . . . . . . . . . . . . . . . Flight . | . . . . . . . . . . . . . . . . . . Fastest Speed 50 | 50 90 160 155 130 145 145 145 160 160 160 175 175 175 160 145 242 240 Average Speed 172 | 90 152 160 200 160 145 145 150 165 174 174 175 175 175 185 206 242 241 Slowest Speed 490 | 100 160 160 240 240 145 145 330 175 175 175 175 175 175 325 490 242 242 Overloaded Moves . | . . . . . . . . . . . . . . . . . . Propulsion Burnouts . | . . . . . . . . . . . . . . . . . . Robots Hopped . | . . . . . . . . . . . . . . . . . . Cave-ins Triggered 1 | . . . . . . . 1 . . . . . . . . . . Exploration Rate (%) 65 | 3 96 56 86 85 60 97 85 58 38 87 80 68 76 16 76 43 70 Regions Visited 17 Branch Regions 11 Pre-discovered Areas 7 | . . . . . 1 . . . . . 1 1 . . . 1 3 Known Exits Taken 2 | . . . . . . . . . 1 . . . . 1 . . . Unknown Exits Taken 15 | 1 1 1 1 1 1 1 1 1 . 1 1 1 1 . 1 1 . Scrap Searched 13 | . . 1 . 1 . 1 . . . 4 3 . 1 . 2 . . Spaces Dug 15 | . . . . . . . 1 9 1 . . . . 4 . . . Terrain Destroyed 788 | . . 33 38 . . 20 144 17 87 157 7 . 71 193 15 6 . Melee 9 | . . . . . . . . 9 . . . . . . . . . Projectile 103 | . . . . . . . 26 8 17 16 7 . 1 18 4 6 . AOE 676 | . . 33 38 . . 20 118 . 70 141 . . 70 175 11 . . Terrain Rammed . | . . . . . . . . . . . . . . . . . . Walls Destroyed . | . . . . . . . . . . . . . . . . . . Machines Disabled . | . . . . . . . . . . . . . . . . . . Actions | -11 -10 -10 -9 -9 -9 -8 -8 -7 -6 -6 -6 -6 -5 -5 -5 -5 -5 --------- Run | Scr Mat Min Mat Min Exi Min Mat Fac Fac Low Low Dat Pro Fac Upp Upp Zhi Total 13254 | 55 889 267 928 479 176 612 1172 2423 1439 1181 737 75 666 1073 689 209 184 Wait 818 | . 58 1 34 27 . 26 75 212 153 8 2 . 3 191 12 16 . Move 10974 | 42 694 241 747 418 176 560 859 2002 1152 1116 714 75 630 665 575 174 134 Hop . | . . . . . . . . . . . . . . . . . . Pick Up 200 | 7 27 3 14 11 . 1 40 24 24 7 1 . 1 24 8 2 6 Fast Attach 83 | 5 5 . 9 1 . . 11 17 5 . 3 . 2 12 8 . 5 Attach 103 | 1 4 2 4 2 . 1 29 9 11 5 . . . 17 9 . 9 Detach 18 | . . . 4 1 . . 7 1 2 . . . . 2 . . 1 Swap 171 | . 6 3 17 2 . 2 20 27 13 8 5 . 9 43 16 . . Drop 189 | . 20 1 20 8 . . 31 40 21 1 4 . 3 23 3 . 14 Fire 635 | . 75 16 78 9 . 22 99 78 58 18 8 . 17 96 29 17 15 Melee 18 | . . . . . . . . 13 . . . . . . 5 . . Ram . | . . . . . . . . . . . . . . . . . . Kick . | . . . . . . . . . . . . . . . . . . Crush 2 | . . . 1 . . . 1 . . . . . . . . . . Escape Stasis . | . . . . . . . . . . . . . . . . . . Rewire 43 | . . . . . . . . . . 18 . . 1 . 24 . . Trap . | . . . . . . . . . . . . . . . . . . Miscellaneous . | . . . . . . . . . . . . . . . . . . Route ------- -11/Scrapyard -10/Materials (discovered 5 exits: *Mat x3 / [*Min x2]) -10/Mines -9/Materials (discovered 4 exits: *Mat x3 / *Min) -9/Mines (discovered 3 exits: *Mat x2 / *Exi) -9/Exiles (discovered 2 exits: *Min x2) -8/Mines (discovered 2 exits: *Mat x2) -8/Materials (discovered 5 exits: *Fac x3 / [*Sto x2]) -7/Factory (discovered 5 exits: *Fac x4 / [*Low]) -6/Factory (discovered 3 exits: *Fac / *Low x2) -6/Lower Caves -6/Lower Caves (discovered 2 exits: *Fac / *Dat) -6/Data Miner -5/Proximity Caves -5/Factory (discovered 2 exits: Fac / *Upp) -5/Upper Caves -5/Upper Caves -5/Zhirov (discovered 1 exit: [*Pro]) History --------- Turn | Location | Event 2 | -11/Scrapyard | Met Revision 17 11 | -11/Scrapyard | Discovered new exit (range 15) 55 | -11/Scrapyard | Entered Materials 64 | -10/Materials | Discovered new exit (range 16) 109 | -10/Materials | Discovered new exit (range 11) 250 | -10/Materials | Core integrity fell below 50% 317 | -10/Materials | Build established: Mutant 869 | -10/Materials | Repaired Assault Rifle 1027 | -10/Materials | Discovered new exit (range 6) 1129 | -10/Materials | Discovered new exit (range 15) 1288 | -10/Materials | Discovered new exit (range 13) 1384 | -10/Materials | Central database locked down 1446 | -10/Materials | Entered Mines 1449 | -10/Mines | Assembled infested the area 1486 | -10/Mines | Core integrity fell below 20% 1864 | -10/Mines | Discovered new exit (range 10) 1878 | -10/Mines | Entered Materials 1878 | -9/Materials | Evolved 2 slots: Utility x1, Weapon x1 2259 | -9/Materials | Destroyed 9 combat bots 2363 | -9/Materials | Discovered new exit (range 15) 2427 | -9/Materials | Build established: Gunner 2722 | -9/Materials | Discovered new exit (range 12) 2937 | -9/Materials | Discovered new exit (range 16) 3424 | -9/Materials | Discovered new exit (range 9) 3654 | -9/Materials | Entered Mines 3659 | -9/Mines | Met a Derelict bent on vengeance 3831 | -9/Mines | Met a Derelict shopkeep closing up shop 3884 | -9/Mines | Deemed a non-threat by the Exiles lab entrance 3884 | -9/Mines | Discovered new exit (range 5) 3959 | -9/Mines | Discovered new exit (range 6) 3991 | -9/Mines | YI-UF0 nonchalantly dropped a Grenade Launcher on the ground 4125 | -9/Mines | Discovered new exit (range 7) 4394 | -9/Mines | Entered Exiles 4413 | -9/Exiles | Discovered new exit (range 15) 4431 | -9/Exiles | Met 8R-AWN 4455 | -9/Exiles | Met EX-HEX 4496 | -9/Exiles | Met EX-BIN 4550 | -9/Exiles | Met EX-DEC 4580 | -9/Exiles | Learned location of Zion (-7) 4631 | -9/Exiles | Discovered new exit (range 14) 4650 | -9/Exiles | Entered Mines 4871 | -8/Mines | Discovered new exit (range 11) 5066 | -8/Mines | Discovered new exit (range 13) 5245 | -8/Mines | Build established: Tank 5538 | -8/Mines | Entered Materials 5538 | -8/Materials | Evolved 2 slots: Utility x2 5590 | -8/Materials | Discovered new exit (range 16) 5732 | -8/Materials | Discovered new exit (range 12) 5796 | -8/Materials | Crushed by falling debris 5839 | -8/Materials | Destroyed 7 combat bots 5848 | -8/Materials | Lost 6 parts (1p3u2w) 5867 | -8/Materials | Discovered new exit (range 15) 6078 | -8/Materials | Build established: Gunner 6559 | -8/Materials | Garrison activated, responded to threat 6691 | -8/Materials | Destroyed 8 combat bots 6693 | -8/Materials | Lost 3 parts (1n2w) 6738 | -8/Materials | First assault squad dispatched 6744 | -8/Materials | Discovered new exit (range 9) 6749 | -8/Materials | Core integrity fell below 50% 6856 | -8/Materials | Sterilization system engaged 6856 | -8/Materials | Non-combat units ordered to evacuate 6863 | -8/Materials | Lost 5 parts (2p2u1w) 6956 | -8/Materials | Combat units ordered to evacuate 6997 | -8/Materials | Build established: Mutant 7079 | -8/Materials | Discovered new exit (range 16) 7156 | -8/Materials | Ambient heat levels rising (+10) 7306 | -8/Materials | Ambient heat levels rising (+10) 7328 | -8/Materials | Entered Factory 7328 | -7/Factory | Evolved 2 slots: Power x1, Utility x1 7471 | -7/Factory | Build established: Tank 7521 | -7/Factory | Discovered new exit (range 16) 8037 | -7/Factory | Build established: Gunner 9338 | -7/Factory | Discovered new exit (range 14) 9445 | -7/Factory | Allied Derelicts emerged from ambush trap array 10659 | -7/Factory | Discovered new exit (range 8) 11073 | -7/Factory | Discovered new exit (range 13) 11164 | -7/Factory | Discovered new exit (range 16) 11261 | -7/Factory | Entered another Factory area 11261 | -6/Factory | Evolved 2 slots: Utility x2 12438 | -6/Factory | Garrison activated, responded to threat 12521 | -6/Factory | Identified exit to Lower Caves 12823 | -6/Factory | Build established: Tank 13281 | -6/Factory | Discovered new exit (range 15) 13688 | -6/Factory | Entered Lower Caves 13794 | -6/Lower Caves | Learned Factory stockpile data 14398 | -6/Lower Caves | Learned Factory non-interactive machine intel 14478 | -6/Lower Caves | Attracted the attention of an 0b10 outpost 14542 | -6/Lower Caves | Destroyed 7 combat bots 15187 | -6/Lower Caves | Build established: Mutant 15586 | -6/Lower Caves | Build established: Tank 15744 | -6/Lower Caves | Discovered new exit (range 7) 15764 | -6/Lower Caves | Entered another Lower Caves area 15764 | -6/Lower Caves | Accompanied by 2 allies 15778 | -6/Lower Caves | Discovered new exit (range 6) 15782 | -6/Lower Caves | Learned Factory interactive machine intel 16011 | -6/Lower Caves | Spotted B-75 Beast 16018 | -6/Lower Caves | Destroyed B-75 Beast 16093 | -6/Lower Caves | Encountered a Warlord checkpoint 16643 | -6/Lower Caves | Attracted the attention of an 0b10 checkpoint 17041 | -6/Lower Caves | Discovered new exit (range 10) 17062 | -6/Lower Caves | Entered Data Miner 17062 | -6/Data Miner | Accompanied by 2 allies 17062 | -6/Data Miner | Discovered new exit (range 6) 17096 | -6/Data Miner | Met Data Miner 17125 | -6/Data Miner | Learned location of Section 7 (-3) 17125 | -6/Data Miner | Acquired the access code to Warlord's prototype stash 17155 | -6/Data Miner | Received God Mode back door access code from Data Miner 17194 | -6/Data Miner | Entered Proximity Caves 17194 | -5/Proximity Caves | Accompanied by 2 allies 17200 | -5/Proximity Caves | Learned Factory emergency access door positions 17315 | -5/Proximity Caves | Escorted by Enhanced Grunt 17567 | -5/Proximity Caves | Learned Factory terminal intel 17612 | -5/Proximity Caves | Build established: Mutant 17861 | -5/Proximity Caves | Attracted the attention of an 0b10 checkpoint 18165 | -5/Proximity Caves | Build established: Tank 18165 | -5/Proximity Caves | Discovered new exit (range 7) 18186 | -5/Proximity Caves | Learned location of 1 exit from Factory 18375 | -5/Proximity Caves | Entered Factory 18375 | -5/Factory | Evolved 2 slots: Propulsion x2 18376 | -5/Factory | Identified exit to Factory 18379 | -5/Factory | Loaded intel: 187 non-interactive machine locations 18380 | -5/Factory | Loaded intel: 51 interactive machine locations 18381 | -5/Factory | Loaded intel: 26 terminal locations 18402 | -5/Factory | Identified exit to Upper Caves 18659 | -5/Factory | Build established: Hacker-Gunner 18703 | -5/Factory | Fabricated Graphene Brace? 18998 | -5/Factory | Build established: Tank 19230 | -5/Factory | Destroyed 7 combat bots 19827 | -5/Factory | Destroyed 11 combat bots 19875 | -5/Factory | First assault squad dispatched 19891 | -5/Factory | Incoming assault squad redirected 20238 | -5/Factory | Entered Upper Caves 20471 | -5/Upper Caves | Learned location of 1 exit from Factory 20847 | -5/Upper Caves | Attracted the attention of an 0b10 checkpoint 20928 | -5/Upper Caves | Build established: Scavenger-Tank 21127 | -5/Upper Caves | Attracted the attention of an 0b10 outpost 21195 | -5/Upper Caves | System corruption reached 10% 21212 | -5/Upper Caves | Lost 11 parts (1p3n4u3w) 21423 | -5/Upper Caves | Build established: Scavenger-Mutant 21550 | -5/Upper Caves | Discovered new exit (range 15) 21612 | -5/Upper Caves | System corruption reached 30% 21623 | -5/Upper Caves | Entered another Upper Caves area 21623 | -5/Upper Caves | Accompanied by 2 allies 21698 | -5/Upper Caves | Attracted the attention of an 0b10 checkpoint 21784 | -5/Upper Caves | Learned location of Warlord (-4) 21908 | -5/Upper Caves | Build established: Scavenger-Tank 22065 | -5/Upper Caves | Discovered new exit (range 13) 22118 | -5/Upper Caves | Entered Zhirov 22118 | -5/Zhirov | Discovered new exit (range 3) 22164 | -5/Zhirov | Met Zhirov 22236 | -5/Zhirov | Learned location of Quarantine (-3) 22236 | -5/Zhirov | Learned location of Testing (-2) 22236 | -5/Zhirov | Learned location of Command (-1) 22258 | -5/Zhirov | Zhirov requested help retrieving the SGEMP Prototype 22304 | -5/Zhirov | Found Alien Artifact 22369 | -5/Zhirov | Found Hvy. Reflective Plating 22433 | -5/Zhirov | Found Alien Artifact 22433 | -5/Zhirov | Identified Integrated Dissipator 22433 | -5/Zhirov | Installed Integrated Dissipator, increased core heat dissipation (+20) 22458 | -5/Zhirov | Build established: Scavenger-Mutant 22465 | -5/Zhirov | Attacked by Zhirov 22510 | -5/Zhirov | Zhirov warped through subspace 22513 | -5/Zhirov | Zhirov detonated his lab 22513 | -5/Zhirov | Cloak Generator disabled 22513 | -5/Zhirov | Core destroyed Last Messages --------------- 22511_ I 8Z/N6UVIC# LDHMAIWT&PZ2 22511_ Acquired Lrn. Proton Cannon. 22513_ Zhirov's Workstation disabled. 22513_ Zhirov's Terminal disabled. 22513_ Machine disabled. 22513_ Zhirov's Terminal disabled. 22513_ Med. Treads destroyed. 22513_ Machine disabled. 22513_ Med. Treads destroyed. 22513_ Shock Maul destroyed. 22513_ Imp. Treads destroyed. 22513_ Zhirov's Terminal disabled. 22513_ Machine disabled. 22513_ Adv. Cooling System destroyed. 22513_ Matter Neutralizer destroyed. 22513_ Lrn. Proton Cannon destroyed. 22513_ Rnf. Fission Core destroyed. 22513_ Adv. Cooling System destroyed. 22513_ Machine disabled. 22513_ Quantum Analyzer disabled. Map ----- +----------------------------------------------------+ | | | | | | | | | ????????????????????????????????????????? | | ????????????????????????????????????????? | | ????????????????????????????????????????? | | ????????????????????????????????????????? | | ????????????????????????????????????????? | | ????????????????????????????????????????? | | ?????????????? ?????????????????????? | | ???????????? ???????????????????? | | ????????? ????????????????? | | ??????? ?#""#?????????? | | ????? ""##????????? | | ????? """##???????? | | ???? """#??????## | | ???? "" #?????## | | ??? ##?#### | | ??? ### | | ??? | | ?? | | ?? ###### | | ? ##????### | | ? #???????? | | ? @ #???????? | | ? #???????? | | ? ????????? | | ?? ?????????? | | ?? ?????????? | | ??? ??????????? | | ???# ??????????? | | ???# ??????????? | | ???? ???????????? | | ???? = ## ???????????? | | ????? #?? ????????????? | | ????? " # #???????????????? | | ??????? ""# #X""""#???????????????? | | ???????## ## ##++########???????????????? | | ???????#" """"#???????????????? | | ???????#"" "#???????????????? | | ???????#" " "!!"[!" "#???????????????? | | ???????# " "*!" !" ="#???????????????? | | ???????# " "] "! "=="#???????????????? | | ???????##################???????????????? | | ????????????????????????????????????????? | | ????????????????????????????????????????? | | ????????????????????????????????????????? | | ????????????????????????????????????????? | | ????????????????????????????????????????? | +----------------------------------------------------+ Best States ------------- Heat Dissipation 122 Coolant Potential 130 Energy Generation 32 Energy Capacity 1000 Matter Stores 300 Matter Capacity 300 Sight Range 16 Robot Scan Range 15 Terrain Scan Density 10 Jamming Range 12 Armor Coverage 825 Resistance: TH 20 Resistance: EX 25 Resistance: EM 25 Propulsion Shielding 66 Evasion (%) 42 Targeting Accuracy 8 Target Analysis 5 Recoil Reduction 4 Energy Filtering 50 Particle Charging 15 Force Boost 20 Offensive Hacking 20 Defensive Hacking 11 Item Schematics ----------------- Hcp. Storage Unit | -10/Materials | Hacked Combat Drone Bay | -6/Data Miner | Free Lgt. Regenerative Plating | -6/Data Miner | Free Enh. Armored Leg | -6/Data Miner | Free Exp. Heat Sink | -6/Data Miner | Free Tiamat Missile Launcher | -6/Data Miner | Free Impulse Thruster | -6/Data Miner | Free Point Defense Array | -6/Data Miner | Free Phase Gun | -6/Data Miner | Free Enh. Gauss Cannon | -6/Data Miner | Free Graphene Brace | -6/Data Miner | Free Lrn. Terrain Scanner | -6/Data Miner | Free Adv. Force Field | -6/Data Miner | Free Assault Drone Bay | -5/Zhirov | Free Exp. Optical Array | -5/Zhirov | Free Imp. Arc Thrower | -5/Zhirov | Free Robot Schematics ------------------ B-60 Warrior | -6/Data Miner | Free L-41 Fighter | -6/Data Miner | Free H-66 Slayer | -6/Data Miner | Free Y-64 Sentinel | -6/Data Miner | Free M-36 Artificer | -6/Data Miner | Free Fabricated ------------ Graphene Brace | x2 | -5/Factory Alien Tech Used ----------------- Integrated Dissipator Achievements -------------- None Challenges ------------ None Game ------ Seed CouplerSmallGreatsword Manual? 0 Play Time 04:06:50 Cumulative 113.3 hours Start 2022.07.21 @ 09:37:50 End 2022.07.24 @ 14:52:01 Sessions 15 Manual Loads 0 Difficulty Rogue Special Mode None Game No. 59 Rogue 59 Adventurer 0 Explorer 0 Win Type - Total 6 Types 6/0/0/0/0/0/0/0/0 Lore% 48 Gallery% 62 Achievement% 54 Wizard Run 0 Options --------- ASCII 0 Keyboard 0 Movement Numpad Keybinds 0 Fullscreen 2 Font 24/Smallcaps Map View 76x50 Tactical HUD 1 Map Filters NONE Filters NONE Steam 1 RUN: 1f916101-714a-413f-ad57-af2dd4870e05